Workbook

Sheet Dashboard
A1: FAIRMOUNT DUPLEXES • INVESTMENT SUMMARY
A2: Alvernon/Fairmount, Tucson AZ | New Construction Duplex | Prepared by Dan Biel – Biel PLLC
B4: ACQUISITION PRICE | C4: POTENTIAL RENT/YR | D4: NET OPER. INCOME | E4: CAP RATE
B5: a | C5: $37,200 | D5: $24,713 | E5: 5.88%
B8: CASH FLOW / YR | D8: VACANCY RATE
B9: $24,713 | D9: 6.0%
B11: INCOME & EXPENSE SUMMARY
B12: Potential Rental Income | D12: 37200
B13: Less: Vacancy (6%) | D13: -2232
B14: Effective Rental Income | D14: 34968
B15: Less: Operating Exp | D15: -10255
B16: NET OPERATING INCOME | D16: 24713
B17: Less: Debt Service | D17: 0
B18: CASH FLOW BEFORE TAXES | D18: 24713
B20: → See tabs: APOD | Cash Flow Analysis | Assumptions

Sheet APOD
A1: ANNUAL PROPERTY OPERATING DATA
A2: CCIM Institute Format • Fairmount Duplexes • Alvernon/Fairmount, Tucson AZ
A4: Property Name | D4: Fairmount Duplexes | I4: ACQUISITION COST
A5: Location | D5: Alvernon/Fairmount, Tucson AZ | I5: Purchase Price | J5: 900000
A6: Type of Property | D6: New Construction Duplex | I6: Closing / Other | J6: 4200
A7: Size of Property | D7: 1,880 Sq Ft | 2 Units | I7: Personal Property | J7: 0
A8: Purpose of Analysis | D8: Investment Analysis | I8: TOTAL BASIS | J8: =J5+J6+J7 -> 904200
A9: Prepared By | D9: Dan Biel – Biel PLLC | I9: Land Value (15%) | J9: =J8*0.15 -> 135630
A10: Date Prepared | D10: 2026-05-30 | I10: Improvements (85%) | J10: =J8*0.85 -> 768570
A13: # | C13: ALL FIGURES ARE ANNUAL | D13: $/Unit | E13: $/SqFt | F13: % GOI | G13: Annual $ | I13: COMMENTS / FOOTNOTES
A14: 1 | C14: POTENTIAL RENTAL INCOME | G14: 37200 | I14: 37200 | J14: Unit 1: $1,700/mo 3BR/2BA | Unit 2: $1,400/mo 2BR/1BA
A15: 2 | C15: Less: Vacancy & Credit Losses | D15: 0.06 | G15: =I14*D15 -> 2232 | I15: =I14*D15 -> 2232 | J15: 6% vacancy rate
A16: 3 | C16: EFFECTIVE RENTAL INCOME | I16: =I14-I15 -> 34968
A17: 4 | C17: Plus: Other Income (collectable) | G17: 0 | I17: 0 | J17: Enter laundry, parking, etc.
A19: 5 | C19: GROSS OPERATING INCOME (GOI) | I19: =I16+I17 -> 34968
A20: OPERATING EXPENSES
A21: 7 | C21: Real Estate Taxes | G21: 0 | I21: 0
A22: 8 | C22: Personal Property Taxes | D22: =I22/2 -> 1212.5 | E22: =I22/1880 -> 1.289893617 | F22: =IF(I20>0,I22/I20,0) -> 0 | G22: 2425 | I22: 2425 | J22: Projected from comparable sales
A23: 9 | C23: Property Insurance | D23: =I23/2 -> 900 | E23: =I23/1880 -> 0.9574468085 | F23: =IF(I20>0,I23/I20,0) -> 0 | G23: 1800 | I23: 1800 | J23: Estimate only
A24: 10 | C24: Off-Site Management (8%) | D24: =I24/2 -> 1540 | E24: =I24/1880 -> 1.638297872 | F24: =IF(I20>0,I24/I20,0) -> 0 | G24: 3080 | I24: 3080 | J24: 8% of GOI
A25: 11 | C25: Payroll | G25: 0 | I25: 0
A26: 12 | C26: Employee Benefits | G26: 0 | I26: 0
A27: 13 | C27: Taxes / Workers Comp | G27: 0 | I27: 0
A28: 14 | C28: Repairs & Maintenance | D28: =I28/2 -> 600 | E28: =I28/1880 -> 0.6382978723 | F28: =IF(I20>0,I28/I20,0) -> 0 | G28: 1200 | I28: 1200
A29: 15 | C29: Utilities (separate meters) | G29: 0 | I29: 0 | J29: Owner pays none
A30: 19 | C30: Accounting & Legal | D30: =I30/2 -> 125 | E30: =I30/1880 -> 0.1329787234 | F30: =IF(I20>0,I30/I20,0) -> 0 | G30: 250 | I30: 250
A31: 20 | C31: Licenses / Permits | G31: 0 | I31: 0
A32: 21 | C32: Advertising | G32: 0 | I32: 0
A33: 22 | C33: Supplies | D33: =I33/2 -> 250 | E33: =I33/1880 -> 0.2659574468 | F33: =IF(I20>0,I33/I20,0) -> 0 | G33: 500 | I33: 500
A34: 24 | C34: Miscellaneous Contract Svcs | D34: =I34/2 -> 500 | E34: =I34/1880 -> 0.5319148936 | F34: =IF(I20>0,I34/I20,0) -> 0 | G34: 1000 | I34: 1000
A35: 29 | C35: TOTAL OPERATING EXPENSES | I35: =SUM(I21:I34) -> 10255
A37: 30 | C37: NET OPERATING INCOME (NOI) | I37: =I19-I35 -> 24713
A38: Implied Cap Rate at $420,000 acquisition: | I38: =I37/420000 -> 0.05884047619
A40: 31 | C40: Less: Annual Debt Service | G40: 0 | I40: 0 | J40: Enter 1st + 2nd mortgage payments
A41: 32 | C41: Less: Participation Payments | G41: 0 | I41: 0
A42: 33 | C42: Less: Leasing Commissions | G42: 0 | I42: 0
A43: 34 | C43: Less: Funded Reserves | G43: 0 | I43: 0 | J43: Capital reserve fund
A45: 35 | C45: CASH FLOW BEFORE TAXES (CFBT) | I45: =I37-I40-I41-I42-I43 -> 24713
A47: Prepared by: Dan Biel – Biel PLLC | CCIM APOD Format (Gary G. Tharp, CCIM © 2004 CCIM Institute) | The statements and figures herein, while not guaranteed, are secured from sources we believe authoritative.

Sheet Cash Flow Analysis
A1: CASH FLOW ANALYSIS – 5-YEAR PROJECTION
A2: Fairmount Duplexes | Alvernon/Fairmount | All values escalate per Assumptions
C3: LINE ITEM | D3: Year 1 | E3: Year 2 | F3: Year 3 | G3: Year 4 | H3: Year 5
A5: 1 | C5: POTENTIAL RENTAL INCOME | D5: 37200 | E5: =D5*(1+0.04) -> 38688 | F5: =E5*(1+0.04) -> 40235.52 | G5: =F5*(1+0.04) -> 41844.9408 | H5: =G5*(1+0.04) -> 43518.73843
A6: 2 | C6: Less: Vacancy & Cr. Losses | D6: =D5*0.06 -> 2232 | E6: =E5*0.06 -> 2321.28 | F6: =F5*0.06 -> 2414.1312 | G6: =G5*0.06 -> 2510.696448 | H6: =H5*0.06 -> 2611.124306
A7: 3 | C7: EFFECTIVE RENTAL INCOME | D7: =D5-D6 -> 34968 | E7: =E5-E6 -> 36366.72 | F7: =F5-F6 -> 37821.3888 | G7: =G5-G6 -> 39334.24435 | H7: =H5-H6 -> 40907.61413
A8: 4 | C8: Plus: Other Income | D8: 0 | E8: 0 | F8: 0 | G8: 0 | H8: 0
A9: 5 | C9: GROSS OPERATING INCOME | D9: =D7+D8 -> 34968 | E9: =E7+E8 -> 36366.72 | F9: =F7+F8 -> 37821.3888 | G9: =G7+G8 -> 39334.24435 | H9: =H7+H8 -> 40907.61413
A10: 6 | C10: Less: Operating Expenses | D10: 10255 | E10: =D10*(1+0.03) -> 10562.65 | F10: =E10*(1+0.03) -> 10879.5295 | G10: =F10*(1+0.03) -> 11205.91539 | H10: =G10*(1+0.03) -> 11542.09285
A11: 7 | C11: NET OPERATING INCOME | D11: =D9-D10 -> 24713 | E11: =E9-E10 -> 25804.07 | F11: =F9-F10 -> 26941.8593 | G11: =G9-G10 -> 28128.32897 | H11: =H9-H10 -> 29365.52128
A12: 8 | C12: Less: Annual Debt Service | D12: 0 | E12: 0 | F12: 0 | G12: 0 | H12: 0
A13: 22 | C13: CASH FLOW BEFORE TAXES | D13: =D11-D12 -> 24713 | E13: =E11-E12 -> 25804.07 | F13: =F11-F12 -> 26941.8593 | G13: =G11-G12 -> 28128.32897 | H13: =H11-H12 -> 29365.52128
A15: ASSUMPTIONS: Rent escalation 4%/yr | Expense escalation 3%/yr | Vacancy 6% | No debt service entered (add on APOD tab)

Sheet Assumptions
A1: ASSUMPTIONS – Estrella Modern Court
A2: Income & Vacancy
A3: Potential Rental Income (Yr 1) | B3: 744000 | C3: Annual
A4: Vacancy Rate | B4: 0.05 | C4: 6%
A5: Rent Escalation (Yr 2+) | B5: 0.035 | C5: 4%/yr
A6: Other Income (Yr 1) | B6: 0 | C6: Enter if applicable
A7: Other Income Escalation | B7: 0.03 | C7: 3%/yr
A8: Expenses
A9: Total Expenses (Yr 1) | B9: 20500 | C9: Annual
A10: Expense Escalation (Yr 2+) | B10: 0.02 | C10: 3%/yr
A11: Tax & Returns
A12: Ordinary Income Tax Rate | B12: 0.36 | C12: 36%
A13: Capital Gain Max Rate | B13: 0.2 | C13: 20%
A14: Straight-Line Recapture Rate | B14: 0.25 | C14: 25%
A15: Sale Cap Rates
A16: Cap Rate – Alt 1 (Bull) | B16: 0.05 | C16: 5.0%
A17: Cap Rate – Alt 2 (Base) | B17: 0.055 | C17: 5.5%
A18: Cap Rate – Alt 3 (Bear) | B18: 0.06 | C18: 6.0%
A19: Cost of Sale | B19: 0.04 | C19: 7%
A20: Acquisition
A21: Purchase Price | B21: 900000
A22: Closing Costs | B22: 8000 | C22: 1% of PP
A23: Total Basis | B23: 848400 | C23: PP + Closing costs
A24: Improvement Value (85%) | B24: 721140 | C24: Depreciable
A25: Useful Life (SL) | B25: 27.4 | C25: Years
